Cogmind - Beta 16.1 @@@ ROGUE MODE // 2026.02.25 @ 18:20:23 // Winter2022/Polymind Player: FAQ Result: Self-destructed Performance ------------- Evolutions (3) 1500 Regions Visited (5) 1000 Robots Destroyed (5) 25 Value Destroyed (100) 100 Prototype IDs (0) 0 Alien Tech Used (0) 0 Bonus (1725) 1725 TOTAL SCORE: 4250 Bonus ------- Polymind Skill 1725 Cogmind --------- Core Integrity 553/700 Matter 25/125 Energy 50/50 System Corruption 0% Temperature Cool (0) Movement Rolling (80) Location -7/Factory Parts ------- > --- POWER (1) -------- Light Ion Engine > --- PROPULSION (2) --- Wheel Wheel > --- UTILITY (1) ------ Medium Matter Pod > --- WEAPON (1) ------- (None) > --- INVENTORY (1) ---- (None) Peak State ------------ > --- POWER ------------ Light Nuclear Core > --- PROPULSION ------- Aluminum Leg Aluminum Leg > --- UTILITY ---------- Improved Heat Sink > --- WEAPON ----------- Particle Gun > --- INVENTORY -------- (None) [Rating: 10] Favorites ----------- Power Ion Engine Engine Ion Engine Power Core Light Nuclear Core Propulsion Light Treads Treads Light Treads Leg Aluminum Leg Wheel Wheel Hover Unit Hover Unit Flight Unit Flight Unit Utility Medium Storage Unit Device Weight Redist. System Storage Medium Storage Unit Processor Transport Network Coupler Weapon Light Assault Rifle Energy Gun Particle Gun Ballistic Gun Light Assault Rifle Build | -11 -10 -10 -10 -8 -7 ------- Run | Yrd Mat Min Sub Mat Fac Slots Evolved . | . . . . . . Power . | . . . . . . Propulsion . | . . . . . . Utility . | . . . . . . Weapon . | . . . . . . Parts Attached . | . . . . . . Power . | . . . . . . Engine . | . . . . . . Core . | . . . . . . Reactor . | . . . . . . Propulsion . | . . . . . . Treads . | . . . . . . Leg . | . . . . . . Wheel . | . . . . . . Hover . | . . . . . . Flight . | . . . . . . Utility . | . . . . . . Device . | . . . . . . Storage . | . . . . . . Processor . | . . . . . . Hackware . | . . . . . . Protection . | . . . . . . Artifact . | . . . . . . Weapon . | . . . . . . Energy Gun . | . . . . . . Energy Cannon . | . . . . . . Ballistic Gun . | . . . . . . Ballistic Cannon . | . . . . . . Launcher . | . . . . . . Special Weapon . | . . . . . . Impact Weapon . | . . . . . . Slashing Weapon . | . . . . . . Piercing Weapon . | . . . . . . Special Melee Weapon . | . . . . . . Unidentified Prototypes . | . . . . . . Parts Lost 8 | . . . 1 3 4 Power 2 | . . . . 1 1 Propulsion 4 | . . . 1 1 2 Utility . | . . . . . . Weapon 2 | . . . . 1 1 Highest Loss Streak 4 | . . . 1 3 4 To Critical Strikes . | . . . . . . Average Backups . | . 1 . . . . Power . | . . . . . . Propulsion . | . . . . . . Utility . | . 1 . . . . Weapon . | . . . . . . Tool/Special . | . . . . . . Unused Backups 3 | . . 3 . . . Power . | . . . . . . Propulsion . | . . . . . . Utility 3 | . . 3 . . . Weapon . | . . . . . . Tool/Special . | . . . . . . Average Slot Usage (%) 90 | . 94 100 90 65 85 Engine 15 | . 17 16 25 15 10 Core 2 | . . . . 3 8 Treads 15 | . 19 29 . . . Leg 4 | . . . . 6 17 Wheel 5 | . 6 . . . 20 Hover 1 | . 10 . . . . Flight 5 | . . 4 40 15 . Device 10 | . 12 14 . 3 10 Storage 10 | . 12 14 . . 10 Processor 8 | . 14 14 . . . Energy Gun 2 | . . . . 3 9 Ballistic Gun 4 | . . 2 25 19 . Peak Build Rating 10 | 5 7 7 4 10 10 Average Rating 5 | 2 6 6 3 3 6 On Entrance 4 | . 5 7 4 3 10 Avg Prop Armor Cover (%) . | . . . . . . Naked Turns 19 | . 5 1 1 12 . Heaviest Build 15 | 9 15 15 4 9 9 Greatest Support 46 | 32 46 46 8 20 20 Greatest Overweight (x) . | . . . . . . Average Overweight (x) . | . . . . . . Largest Inventory Capacity 6 | 4 6 6 . 1 1 Average Capacity 3 | 2 4 5 . . 1 Most Carried 3 | . 3 3 . . . Average Carried . | . 1 . . . . Final Capacity 6 | 4 6 . . 1 1 Final Carried 3 | . 3 . . . . Class Distribution -------------------- 49% | Hauler 16% | Swarmer 13% | Grunt 12% | Worker 4% | Watcher Dominant Class ---------------- Hauler | -10/Materials Hauler | -10/Mines Swarmer | -10/Subcaves Swarmer | -8/Materials Worker | -7/Factory Resources | -11 -10 -10 -10 -8 -7 ----------- Run | Yrd Mat Min Sub Mat Fac Matter Collected 21 | . . 10 . 11 . Remotely . | . . . . . . Salvage Created 168 | . . 25 . 28 115 Parts 9 | . . 5 . 1 3 Haulers Intercepted . | . . . . . . Recyclers Shooed . | . . . . . . Parts Field Recycled . | . . . . . . Retrieved Matter . | . . . . . . Parts Self-Destructed . | . . . . . . Prevented . | . . . . . . Parts Restored . | . . . . . . Kills | -11 -10 -10 -10 -8 -7 ------- Run | Yrd Mat Min Sub Mat Fac Combat Hostiles Destroyed 3 | . . 2 . . 1 Guns 2 | . . 2 . . . Classes Destroyed 4 | . . 1 . 1 2 Worker 1 | . . . . . 1 Watcher 1 | . . . . 1 . Swarmer 2 | . . 2 . . . Sentry 1 | . . . . . 1 Best Kill Streak 2 | . . 2 . 1 2 Combat Bots Only 2 | . . 2 . . 1 Max Kills in Single Turn 1 | . . 1 . 1 1 Gunslinging . | . . . . . . Exploded . | . . . . . . Melee . | . . . . . . Uniques/NPCs Destroyed . | . . . . . . Combat | -11 -10 -10 -10 -8 -7 -------- Run | Yrd Mat Min Sub Mat Fac Hostile Shots Fired 122 | . . 15 4 22 81 Missed 40 | . . 5 . 7 28 Hits 82 | . . 10 4 15 53 Projectile 82 | . . 10 4 15 53 Critical Strikes 1 | . . . 1 . . Damage Taken 795 | . . 84 75 254 382 Core 358 | . . 22 30 159 147 Absorbed by Shields . | . . . . . . Core Remaining (%) 83 | 100 . . 79 71 . Volleys Fired 48 | . . 9 1 27 11 Largest 1 | . . 1 1 1 1 Hottest 65 | . . 20 20 20 65 Shots Fired 48 | . . 9 1 27 11 Gun 48 | . . 9 1 27 11 Cannon . | . . . . . . Launcher . | . . . . . . Special . | . . . . . . Kinetic 37 | . . 9 1 27 . Thermal 11 | . . . . . 11 Explosive . | . . . . . . Electromagnetic . | . . . . . . Robot Hit Streak 5 | . . 3 . 5 4 Robot Miss Streak 2 | . . 2 1 2 1 Penetration Max . | . . . . . . Secondary Targets . | . . . . . . Shots Hit Robots 29 | . . 5 . 16 8 Core Hits 13 | . . 3 . 7 3 Critical Kills . | . . . . . . Critical Parts Destroyed 1 | . . 1 . . . Critical Strikes 1 | . . 1 . . . Destroy 1 | . . 1 . . . Melee Attacks . | . . . . . . Impact . | . . . . . . Slashing . | . . . . . . Piercing . | . . . . . . Sneak Attacks . | . . . . . . Combat Hostiles . | . . . . . . Follow-up Attacks . | . . . . . . Damage Inflicted 367 | . . 45 . 173 149 Guns 320 | . . 45 . 138 137 Cannons . | . . . . . . Explosions . | . . . . . . Melee . | . . . . . . Ramming 47 | . . . . 35 12 Kinetic 183 | . . 45 . 138 . Thermal 137 | . . . . . 137 Explosive . | . . . . . . Electromagnetic . | . . . . . . Impact . | . . . . . . Slashing . | . . . . . . Piercing . | . . . . . . Highest Corruption 1 | . 1 1 1 . . Average Corruption 1 | . 1 1 1 . . Corruption Purged . | . . . . . . Corruption Blocked . | . . . . . . Effects 1 | . . . 1 . . Message Errors 1 | . . . 1 . . Overload Shots . | . . . . . . Overflow Damage . | . . . . . . Projectiles . | . . . . . . Explosions . | . . . . . . Melee . | . . . . . . Knockbacks . | . . . . . . Impact . | . . . . . . Kinetic . | . . . . . . Secondary . | . . . . . . Self-Inflicted Damage 20 | . . . . 16 4 Shots . | . . . . . . Rammed 16 | . . . . 10 6 Targets Rammed 16 | . . . . 10 6 Kicked . | . . . . . . Crushed . | . . . . . . Highest Temperature 30 | . . 30 . 12 14 Average Temperature 9 | . . 19 . 3 8 Received Heat Transfer 225 | . . . . 135 90 Siege Activations . | . . . . . . Martial Activations . | . . . . . . Shielding Activations . | . . . . . . Robots Disrupted . | . . . . . . Combat Hostiles . | . . . . . . Robots Corrupted . | . . . . . . Combat Hostiles . | . . . . . . Parts Fried . | . . . . . . Impact Corruptions . | . . . . . . Robots Melted 1 | . . . . . 1 Combat Hostiles 1 | . . . . . 1 Parts Melted 1 | . . . . . 1 Heat Transferred 333 | . . . . . 333 Parts Sabotaged . | . . . . . . Parts Stolen . | . . . . . . Parts Stripped . | . . . . . . Power Chain Reactions . | . . . . . . Alert | -11 -10 -10 -10 -8 -7 ------- Run | Yrd Mat Min Sub Mat Fac Maximum Alert Level . | . . . . . . Low Security (%) 100 | 100 100 100 . 100 100 Level 1 . | . . . . . . Level 2 . | . . . . . . Level 3 . | . . . . . . Level 4 . | . . . . . . Level 5 . | . . . . . . High Security . | . . . . . . Max Security . | . . . . . . Peak Influence 50 | . 15 50 . 7 30 Initial 1 | . . 1 . . . Average 3 | . 4 2 . . 6 Influence Increases 149 | . 42 50 . 7 50 Destroy 0b10 Robot/C 60 | . . 40 . . 20 Destroy 0b10 Robot/NC 10 | . . . . 5 5 Destroy Leader 22 | . . 10 . 2 10 Successful Hack 12 | . 12 . . . . Partial Spotted 30 | . 30 . . . . Lose Combat Pursuer 15 | . . . . . 15 Influence Decreases 149 | . 37 13 42 7 50 Entered New Map 26 | . . 4 22 . . Time Decay 104 | . 34 9 10 7 44 Lost Part 15 | . . . 10 . 5 Miscellaneous 4 | . 3 . . . 1 Squads Dispatched 1 | . . . . . 1 Investigation . | . . . . . . Extermination . | . . . . . . Reinforcement 1 | . . . . . 1 Assault . | . . . . . . Garrison . | . . . . . . Intercept . | . . . . . . Searches Triggered . | . . . . . . Construction Impeded . | . . . . . . Haulers Reinforced . | . . . . . . Active Scanning Responses . | . . . . . . Cargo Convoy Interrupts . | . . . . . . Stealth | -11 -10 -10 -10 -8 -7 --------- Run | Yrd Mat Min Sub Mat Fac Distress Signals . | . . . . . . Communications Jammed . | . . . . . . Distress Signals . | . . . . . . Times Spotted 22 | . 1 5 10 3 3 Peak Tracking Total 5 | . 2 2 5 1 1 Tactical Retreats 1 | . . . . . 1 Traps | -11 -10 -10 -10 -8 -7 ------- Run | Yrd Mat Min Sub Mat Fac Traps Triggered 1 | . 1 . . . . Indirectly . | . . . . . . Trap Hack Attempts . | . . . . . . Triggered . | . . . . . . Disarmed . | . . . . . . Reprogrammed . | . . . . . . Reused . | . . . . . . Traps Extracted . | . . . . . . Installed . | . . . . . . Triggered . | . . . . . . Machines | -11 -10 -10 -10 -8 -7 ---------- Run | Yrd Mat Min Sub Mat Fac Machines Disabled . | . . . . . . Max in Single Turn . | . . . . . . Machines Repaired . | . . . . . . Machines Dismantled . | . . . . . . Machines Sabotaged . | . . . . . . Overloaded Fab Kills . | . . . . . . Hacking | -11 -10 -10 -10 -8 -7 --------- Run | Yrd Mat Min Sub Mat Fac Machines Accessed 2 | . 2 . . . . Terminals 2 | . 2 . . . . Fabricators . | . . . . . . Repair Stations . | . . . . . . Recycling Units . | . . . . . . Scanalyzers . | . . . . . . Garrison Access . | . . . . . . Total Hacks 4 | . 4 . . . . Successful 2 | . 2 . . . . Failed 2 | . 2 . . . . Catastrophic . | . . . . . . Database Lockouts . | . . . . . . Manual 3 | . 3 . . . . Terminals 4 | . 4 . . . . Fabricators . | . . . . . . Repair Stations . | . . . . . . Recycling Units . | . . . . . . Scanalyzers . | . . . . . . Garrison Access . | . . . . . . Terminal Hacks 1 | . 1 . . . . Branch Access Points 1 | . 1 . . . . Fabricator Hacks . | . . . . . . Repair Station Hacks . | . . . . . . Recycling Unit Hacks . | . . . . . . Scanalyzer . | . . . . . . Garrison Access Hacks . | . . . . . . Unauthorized Hacks 1 | . 1 . . . . Terminals 1 | . 1 . . . . Botnet 1 | . 1 . . . . Fabricators . | . . . . . . Repair Stations . | . . . . . . Recycling Units . | . . . . . . Scanalyzers . | . . . . . . Garrison Access . | . . . . . . Data Cores Recovered . | . . . . . . Used . | . . . . . . Hacking Detections 2 | . 2 . . . . Full Trace Events . | . . . . . . Feedback Events . | . . . . . . Feedback Blocked . | . . . . . . Robot Schematics Acquired . | . . . . . . Robots Built . | . . . . . . Authchips . | . . . . . . Time . | . . . . . . Total Robot Build Rating . | . . . . . . Part Schematics Acquired . | . . . . . . Parts Built . | . . . . . . Authchips . | . . . . . . Time . | . . . . . . Total Part Build Rating . | . . . . . . Part Studies Acquired . | . . . . . . Parts Repaired . | . . . . . . Time . | . . . . . . Parts Recycled . | . . . . . . Recycled Matter . | . . . . . . Retrieved Matter . | . . . . . . Retrieved Components . | . . . . . . Parts Scanalyzed . | . . . . . . Part Schematics Acquired . | . . . . . . Parts Damaged . | . . . . . . Bothacking | -11 -10 -10 -10 -8 -7 ------------ Run | Yrd Mat Min Sub Mat Fac Used RIF Installer . | . . . . . . Robots Hacked 6 | . 2 1 1 1 1 Non-combat 3 | . 2 . . . 1 Combat 3 | . . 1 1 1 . Robot Hacks Applied 8 | . 3 1 1 2 1 find_chute 1 | . . . . . 1 locate_stockpiles 1 | . 1 . . . . map_route 1 | . 1 . . . . mark_security 1 | . 1 . . . . find_shortcuts 3 | . . 1 1 1 . find_garrison 1 | . . . . 1 . Relay Couplers Released . | . . . . . . Fabnet Peak Effective % . | . . . . . . Robots Rewired . | . . . . . . Allies Hacked . | . . . . . . Hacks Repelled . | . . . . . . Allies | -11 -10 -10 -10 -8 -7 -------- Run | Yrd Mat Min Sub Mat Fac Total Allies . | . . . . . . Largest Group . | . . . . . . Highest-Rated Group . | . . . . . . Highest-Rated Ally . | . . . . . . Total Orders . | . . . . . . Ally Attacks . | . . . . . . Total Damage . | . . . . . . Kills . | . . . . . . Allies Corrupted . | . . . . . . Allies Melted . | . . . . . . Intel | -11 -10 -10 -10 -8 -7 ------- Run | Yrd Mat Min Sub Mat Fac Active Infowar (turns) 528 | . 152 376 . . . Optics 40 | . 40 . . . . T.N.C. 488 | . 112 376 . . . Robot Analysis Total 6 | 1 2 1 . 1 1 Derelict Logs Recovered 1 | . . 1 . . . Drone Launches . | . . . . . . Drone Recoveries . | . . . . . . Exploration | -11 -10 -10 -10 -8 -7 ------------- Run | Yrd Mat Min Sub Mat Fac Turns Passed 1004 | 15 179 415 41 120 234 Spaces Moved 934 | 22 170 296 100 119 227 Core 35 | 13 6 1 . 4 11 Treads 305 | . 71 234 . . . Legs 83 | . . . . 17 66 Wheels 181 | 9 22 . . . 150 Hover 71 | . 71 . . . . Flight 259 | . . 61 100 98 . Fastest Speed 37 | 50 50 37 37 40 50 Average Speed 95 | 70 104 134 37 51 90 Slowest Speed 160 | 100 160 160 40 120 120 Overloaded Moves . | . . . . . . Propulsion Burnouts . | . . . . . . Robots Hopped 1 | . . 1 . . . Potential Cave-ins . | . . . . . . Cave-ins Triggered . | . . . . . . Exploration Rate (%) 22 | 2 36 65 9 12 10 Regions Visited 5 Branch Regions 2 Pre-discovered Areas . | . . . . . . Known Exits Taken 1 | . 1 . . . . Unknown Exits Taken 4 | 1 . 1 1 1 . Scrap Searched . | . . . . . . Spaces Dug . | . . . . . . Terrain Destroyed . | . . . . . . Melee . | . . . . . . Projectile . | . . . . . . AOE . | . . . . . . Terrain Rammed . | . . . . . . Walls Destroyed . | . . . . . . Machines Disabled . | . . . . . . Actions | -11 -10 -10 -10 -8 -7 --------- Run | Yrd Mat Min Sub Mat Fac Total 1000 | 21 171 306 101 156 245 Wait 3 | . 2 . . 1 . Move 927 | 21 169 293 99 118 227 Hop 1 | . . 1 . . . Pick Up . | . . . . . . Fast Attach . | . . . . . . Attach . | . . . . . . Detach . | . . . . . . Swap . | . . . . . . Drop 3 | . . 3 . . . Fire 48 | . . 9 1 27 11 Melee . | . . . . . . Ram 16 | . . . . 10 6 Kick . | . . . . . . Crush . | . . . . . . Escape Stasis . | . . . . . . Rewire 2 | . . . 1 . 1 Trap . | . . . . . . Miscellaneous . | . . . . . . Route ------- -11/Scrapyard -10/Materials (discovered 3 exits: [*Mat x2] / *Min) -10/Mines -10/Subcaves (discovered 2 exits: [*Mat] / Rec) -8/Materials -7/Factory History --------- Turn | Location | Event 5 | -11/Scrapyard | Discovered new exit (range 15) 16 | -11/Scrapyard | Entered Materials 42 | -10/Materials | Discovered new exit (range 40) 59 | -10/Materials | Identified exit to Mines 131 | -10/Materials | Discovered new exit (range 11) 195 | -10/Materials | Entered Mines 608 | -10/Mines | Discovered new exit (range 6) 610 | -10/Mines | Entered Subcaves 611 | -10/Subcaves | Approached by a straggling Scientist 611 | -10/Subcaves | Identified exit to Recycling 630 | -10/Subcaves | A Subdweller sparked back to life 630 | -10/Subcaves | A Subdweller sparked back to life 630 | -10/Subcaves | A Subdweller sparked back to life 635 | -10/Subcaves | Shifting Twisted Machinery released Battle Rifle 641 | -10/Subcaves | Discovered new exit (range 8) 644 | -10/Subcaves | Shifting Twisted Machinery released Riot Gun 651 | -10/Subcaves | Entered Materials 743 | -8/Materials | Discovered new exit (range 9) 771 | -8/Materials | Lost 3 parts (1p1n1w) 771 | -8/Materials | Entered Factory 902 | -7/Factory | Lost 4 parts (1p2n1w) 1005 | -7/Factory | Self-destructed Last Messages --------------- 00910_ Cleaned Power Conduit. 00930_ Cleaned Fabricator. 00936_ Cleaned Matter Pump. 00939_ Cleaned Nuclear Reactor. 00942_ O-24 Administrator: "IFF HANDSHAKE FAILED. SECURING TERMINAL." 00942_ Cleaned Nuclear Reactor. 00942_ Collected debris. 00945_ Cleaned Nuclear Reactor. 00948_ ALERT: Hostiles spotted, dispatching reinforcements to Terminal F020. 00948_ Cleaned Nuclear Reactor. 00969_ Cleaned Fusion Modulator. 00972_ K-01 Serf cleans the Fusion Modulator. 00976_ Cleaned Fusion Modulator. 00976_ K-01 Serf collects debris. 00977_ Cleaned Fusion Modulator. 00979_ K-01 Serf cleans the Fusion Modulator. 00982_ Cleaned Neutrino Reactor. 00993_ Cleaned Repair Station. 00997_ K-01 Serf cleans the Fusion Modulator. Map ----- +----------------------------------------------------+ | ????????????????????????????????????????? ? | | ???????????????????????????????????????? ![ | | ??????????????????????????????????????? ![ """ | | ????????????????????????????????????? """ | | ?????????????????????????????????????/// """ | | ?????????????????????????????????????/// | | ?????????????????????????????????????// """ | | ????????????????????????????????????? """ | | ?????????????????????????????????????? """ | | ???????????????????????????????????????????## | | ????????????????????????????????????????????# | | ????????????????????????????????????????????# | | ????????????????????????????????????????????# | | ????????????????????????????????????????????# | | ?????????????????????????#####??????????????# | | ????????????????????????? #??????????????# | | ????????????????????????" +??????????????# | | ????????????????????????" #??????????????# #### | | ????????????????????????" ??? ???????# #??? | | ?????????????????????? ??? ??????# #??? | | ???????????????????????"" ??? #?????# #??? | | ???????????????????????"" ??? #?????# #??? | | ????????????????????????" ???? #?????# #??? | | ???????????????????????? ???# #?????# #??? | | ????????????????????????#/#?### + ????# #??? | | ???????????????????????##k### #?????# #??? | | ???????????????????????# ####### ##?? | | ???????????????????????# #?? | | ???????????????????????# k #?? | | ???????????????????????# k """ """ """ #?? | | ???????????????????????# ## """ """ """ +?? | | ???????????????????? ## k""" """ """ ! #?? | | ????????????????? ## ##? | | ???????????????? ## | | ?????????????????############ #############+### | | ??????????????????????#########+##########???????? | | ??????????????????????# #???????? | | ??????????????????????# """ ! #???????? | | ??????????????????????# "R" #???????? | | ??????????????????????# " " """ """ """ #???????? | | ??????????????????????# """ """ """ #???????? | | ??????????????????????# """ """ """ #???????? | | ??????????????????????# ????????? | | ??????????????????????# #???????? | | ??????????????????????####################???????? | | ?????????????????????????????????????????????????? | | ?????????????????????????????????????????????????? | | ?????????????????????????????????????????????????? | | ?????????????????????????????????????????????????? | | ?????????????????????????????????????????????????? | +----------------------------------------------------+ Best States ------------- Heat Dissipation 43 Energy Generation 19 Energy Capacity 175 Matter Stores 100 Matter Capacity 125 Sight Range 18 Terrain Scan Density 10 Additional Mass Support 6 Evasion (%) 62 Recoil Reduction 2 Item Schematics ----------------- None Robot Schematics ------------------ None Fabricated ------------ Nothing Repaired ---------- Nothing Studied --------- None Alien Tech Used ----------------- None Achievements -------------- None Challenges ------------ None Polymind | -11 -10 -10 -10 -8 -7 ---------- Run | Yrd Mat Min Sub Mat Fac Hosts 7 | 1 2 1 1 1 1 Combat Hostiles 3 | . . 1 1 1 . Allies . | . . . . . . Unique Host Classes 6 | 1 2 1 . 1 1 Average Host Suspicion 60 | 1 71 51 7 86 65 Unsuspicious Activity 112 | 2 8 . 10 15 77 Returns to Shadow . | . . . . . . Fuzzy Dispatches . | . . . . . . Protomatter Created 3 | . . 3 . . . Used 69 | 5 17 6 6 30 5 Decayed . | . . . . . . Highest Spend 30 | 5 12 6 6 30 5 Top 5 Hosts by Kills: S-10 Pest (-10/Mines: 2) G-47 Trooper (-8/Materials: 1) Game ------ Seed PitchforkNavigationInjector Manual? 0 Play Time 00:12:33 Cumulative 51.9 hours Start 2026.02.25 @ 18:08:08 End 2026.02.25 @ 18:20:23 Sessions 1 Manual Loads 0 Difficulty Rogue Special Mode Winter2022/Polymind Game No. 89 Rogue 89 Adventurer 0 Explorer 0 Win Type - Total 0 Types 0/0/0/0/0/0/0/0/0/0 Lore% 32 Gallery% 37 Achievement% 29 Wizard Run 0 Options --------- Layout 0 ASCII 1 Keyboard 1 Movement Numpad Keybinds 0 Fullscreen 1 Font 18/VGA_Max Map View 76x50 Zoom Use 0% Tactical HUD 1 Map Filters NONE Filters NONE Steam 1 RUN: 9881e380-1926-4676-912c-e399d2c97036